[Event "TOP16-LaBourdannais"]
[Site "TOP16-LaBourdannais"]
[Date "2021.01.09"]
[Round "3"]
[White "Pierre35"]
[Black "maten3coups"]
[Result "1-0"]
[WhiteElo "1865"]
[BlackElo "1620"]
[Annotator "NA RC"]
[PlyCount "63"]
[EventDate "2021.01.09"]
[EventType "blitz"]
[TimeControl "300+3"]

1. e4 {[%emt 0:00:07]} c5 {[%emt 0:00:05]} 2. Nf3 {[%emt 0:00:02]} Nc6 {[%emt 0:00:06]} 3. d4 {[%emt 0:00:04]} cxd4 {[%emt 0:00:00]} 4. Nxd4 {[%emt 0:00:01]} Nf6 {[%emt 0:00:09]} 5. Nc3 {[%emt 0:00:03]} d6 {[%emt 0:00:07]} 6. Bg5 {[%emt 0:00:04]} e6 {[%emt 0:00:03]} 7. Qd2 {[%emt 0:00:02]} Nxd4 {[%emt 0:00:01]} 8. Qxd4 {[%emt 0:00:03]} a6 {[%emt 0:00:01]} 9. O-O-O {[%emt 0:00:03]} Be7 {[%emt 0:00:01]} 10. f4 {[%emt 0:00:23]} O-O {[%emt 0:00:11]} 11. Kb1 {[%emt 0:00:26]} b5 {[%emt 0:00:06]} 12. Bd3 {[%emt 0:00:08]} Bb7 {[%emt 0:00:06]} 13. e5 {[%emt 0:00:17]} dxe5 {[%emt 0:00:06]} 14. Qxd8 {[%emt 0:00:05]} Bxd8 {[%emt 0:00:27]} 15. fxe5 {[%emt 0:00:01]} Ng4 {[%emt 0:00:03]} 16. Bxd8 {[%emt 0:01:28]} Raxd8 {[%emt 0:00:03]} 17. Rhe1 {[%emt 0:00:24]} Bxg2 {[%emt 0:01:32]} 18. a4 {[%emt 0:01:03]} b4 {[%emt 0:00:22]} 19. Ne4 {[%emt 0:00:03]} Bxe4 {[%emt 0:00:08]} 20. Bxe4 {[%emt 0:00:08]} Rxd1+ {[%emt 0:00:41]} 21. Rxd1 {[%emt 0:00:00]} Nxe5 {[%emt 0:00:00]} 22. Rd6 {[%emt 0:00:01]} a5 {[%emt 0:00:59]} 23. Ra6 {[%emt 0:00:02]} g5 {[%emt 0:00:11]} 24. Rxa5 {[%emt 0:00:03]} f6 {[%emt 0:00:13]} 25. Rb5 {[%emt 0:00:02]} Ng4 {[%emt 0:00:09]} 26. a5 {[%emt 0:00:04]} f5 {[%emt 0:00:02]} 27. Bb7 {[%emt 0:00:03]} Nf6 {[%emt 0:00:28]} 28. a6 {[%emt 0:00:03]} Nd5 {[%emt 0:00:01]} 29. Bxd5 {[%emt 0:00:05]} exd5 {[%emt 0:00:00]} 30. a7 {[%emt 0:00:01]} f4 {[%emt 0:00:08]} 31. Rb8 {[%emt 0:00:02]} f3 {[%emt 0:00:00]} 32. Rxf8+ {[%emt 0:00:04] maten3coups abandonne} 1-0

[Event "TOP16-LaBourdannais"]
[Site "TOP16-LaBourdannais"]
[Date "2021.01.09"]
[Round "5"]
[White "Babota"]
[Black "Brunico2016"]
[Result "1-0"]
[WhiteElo "1709"]
[BlackElo "1893"]
[Annotator "NA RC"]
[PlyCount "33"]
[EventDate "2021.01.09"]
[EventType "blitz"]
[TimeControl "300+3"]

1. e4 {[%emt 0:00:04]} c5 {[%emt 0:00:01]} 2. Nf3 {[%emt 0:00:02]} d6 {[%emt 0:00:02]} 3. Bb5+ {[%emt 0:00:02]} Nd7 {[%emt 0:00:03]} 4. Ba4 {[%emt 0:00:01]} Ngf6 {[%emt 0:00:06]} 5. O-O {[%emt 0:00:01]} e6 {[%emt 0:00:12]} 6. c4 {[%emt 0:00:04]} Nxe4 {[%emt 0:00:12]} 7. Re1 {[%emt 0:00:02]} Nef6 {[%emt 0:00:02]} 8. d4 {[%emt 0:00:03]} cxd4 {[%emt 0:00:06]} 9. Nxd4 {[%emt 0:00:00]} Be7 {[%emt 0:00:01]} 10. Rxe6 {[%emt 0:00:16]} fxe6 {[%emt 0:00:07]} 11. Nxe6 {[%emt 0:00:02]} Qa5 {[%emt 0:00:07]} 12. Bd2 {[%emt 0:00:28]} Qb6 {[%emt 0:00:32]} 13. c5 {[%emt 0:00:08]} dxc5 {[%emt 0:00:06]} 14. Qe1 {[%emt 0:00:42]} Kf7 {[%emt 0:00:35]} 15. Bb3 {[%emt 0:00:20]} c4 {[%emt 0:01:23]} 16. Bxc4 {[%emt 0:00:10]} Qc6 {[%emt 0:00:01]} 17. Nd8+ {[%emt 0:00:03] Brunico2016 abandonne} 1-0

[Event "TOP16-LaBourdannais"]
[Site "TOP16-LaBourdannais"]
[Date "2021.01.09"]
[Round "6"]
[White "Pierre35"]
[Black "jncool68"]
[Result "1/2-1/2"]
[WhiteElo "1960"]
[BlackElo "2416"]
[Annotator "NA RC"]
[PlyCount "36"]
[EventDate "2021.01.09"]
[EventType "blitz"]
[TimeControl "300+3"]

1. e4 {[%emt 0:00:09]} e5 {[%emt 0:00:02]} 2. Nf3 {[%emt 0:00:02]} Nc6 {[%emt 0:00:01]} 3. Bb5 {[%emt 0:00:03]} a6 {[%emt 0:00:01]} 4. Ba4 {[%emt 0:00:01]} Nf6 {[%emt 0:00:01]} 5. O-O {[%emt 0:00:02]} Be7 {[%emt 0:00:01]} 6. Re1 {[%emt 0:00:01]} b5 {[%emt 0:00:01]} 7. Bb3 {[%emt 0:00:01]} d6 {[%emt 0:00:00]} 8. c3 {[%emt 0:00:02]} O-O {[%emt 0:00:00]} 9. h3 {[%emt 0:00:01]} Bb7 {[%emt 0:00:02]} 10. d3 {[%emt 0:00:02]} Re8 {[%emt 0:00:06]} 11. Nbd2 {[%emt 0:00:03]} Bf8 {[%emt 0:00:01]} 12. Nf1 {[%emt 0:00:02]} h6 {[%emt 0:00:08]} 13. Ng3 {[%emt 0:00:04]} d5 {[%emt 0:00:16]} 14. exd5 {[%emt 0:00:38]} Nxd5 {[%emt 0:00:01]} 15. d4 {[%emt 0:00:01]} Nb6 {[%emt 0:00:24]} 16. dxe5 {[%emt 0:00:17]} Qxd1 {[%emt 0:00:04]} 17. Bxd1 {[%emt 0:00:03]} Nc4 {[%emt 0:00:02]} 18. e6 {[%emt 0:00:53]} Rxe6 {[%emt 0:00:16] jncool68 propose la nulle} 1/2-1/2

[Event "TOP16-LaBourdannais"]
[Site "TOP16-LaBourdannais"]
[Date "2021.01.09"]
[Round "9"]
[White "Brunico2016"]
[Black "jncool68"]
[Result "1/2-1/2"]
[WhiteElo "1895"]
[BlackElo "2389"]
[Annotator "NA RC"]
[PlyCount "84"]
[EventDate "2021.01.09"]
[EventType "blitz"]
[TimeControl "300+3"]

1. d4 {[%emt 0:00:01]} Nf6 {[%emt 0:00:01]} 2. c4 {[%emt 0:00:01]} e6 {[%emt 0:00:01]} 3. Nf3 {[%emt 0:00:01]} Bb4+ {[%emt 0:00:02]} 4. Bd2 {[%emt 0:00:01]} Qe7 {[%emt 0:00:02]} 5. g3 {[%emt 0:00:02]} Bxd2+ {[%emt 0:00:01]} 6. Qxd2 {[%emt 0:00:02]} Nc6 {[%emt 0:00:01]} 7. Nc3 {[%emt 0:00:02]} O-O {[%emt 0:00:02]} 8. Bg2 {[%emt 0:00:05]} d5 {[%emt 0:00:01]} 9. O-O {[%emt 0:00:11]} dxc4 {[%emt 0:00:01]} 10. Ne5 {[%emt 0:00:04]} Nxe5 {[%emt 0:00:23]} 11. dxe5 {[%emt 0:00:01]} Nd7 {[%emt 0:00:01]} 12. Qd4 {[%emt 0:00:09]} Qc5 {[%emt 0:00:04]} 13. Qxc5 {[%emt 0:00:11]} Nxc5 {[%emt 0:00:00]} 14. Nb5 {[%emt 0:00:11]} Bd7 {[%emt 0:00:06]} 15. Na3 {[%emt 0:00:03]} Rfd8 {[%emt 0:00:07]} 16. Rfd1 {[%emt 0:00:12]} Ba4 {[%emt 0:00:02]} 17. Rxd8+ {[%emt 0:00:10]} Rxd8 {[%emt 0:00:00]} 18. Nxc4 {[%emt 0:00:01]} Rd1+ {[%emt 0:00:38]} 19. Rxd1 {[%emt 0:00:02]} Bxd1 {[%emt 0:00:00]} 20. Kf1 {[%emt 0:00:37]} b6 {[%emt 0:00:03]} 21. Ke1 {[%emt 0:00:05]} Ba4 {[%emt 0:00:01]} 22. Kd2 {[%emt 0:00:07]} Kf8 {[%emt 0:00:08]} 23. b4 {[%emt 0:00:09]} Nd7 {[%emt 0:00:03]} 24. f4 {[%emt 0:00:01]} Ke7 {[%emt 0:00:08]} 25. Kc3 {[%emt 0:00:08]} Bb5 {[%emt 0:00:02]} 26. e3 {[%emt 0:00:05]} Bxc4 {[%emt 0:00:15]} 27. Kxc4 {[%emt 0:00:01]} Nb8 {[%emt 0:00:00]} 28. Be4 {[%emt 0:00:09]} h6 {[%emt 0:00:02]} 29. a3 {[%emt 0:00:03]} Kd7 {[%emt 0:00:05]} 30. Bf3 {[%emt 0:00:09]} c6 {[%emt 0:00:01]} 31. Bh5 {[%emt 0:00:07]} Ke7 {[%emt 0:00:04]} 32. Bf3 {[%emt 0:00:02]} Kd7 {[%emt 0:00:03]} 33. Bh5 {[%emt 0:00:02]} g6 {[%emt 0:00:34]} 34. Bf3 {[%emt 0:00:01]} Kc7 {[%emt 0:00:01]} 35. h4 {[%emt 0:00:18]} h5 {[%emt 0:00:01]} 36. g4 {[%emt 0:00:11]} hxg4 {[%emt 0:00:01]} 37. Bxg4 {[%emt 0:00:01]} Nd7 {[%emt 0:00:01]} 38. h5 {[%emt 0:00:02]} gxh5 {[%emt 0:00:02]} 39. Bxh5 {[%emt 0:00:01]} f6 {[%emt 0:00:01]} 40. exf6 {[%emt 0:00:01]} Nxf6 {[%emt 0:00:01]} 41. Bf3 {[%emt 0:00:03]} Kd6 {[%emt 0:00:01]} 42. Kd4 {[%emt 0:00:05]} Nd7 {[%emt 0:00:03] jncool68 propose la nulle (Lag: Av=0.31s, max=0.7s)} 1/2-1/2